fUSD/lending_fUSD_20250206
["ID","MTS","AMOUNT","RATE_DAILY","PERIOD"]
[351929459,1738847449808,-500.0,0.00019315,3]
[351929461,1738847449818,-500.0,0.00019315,3]
[351929463,1738847449827,-932.5,0.00019315,3]
[351929465,1738847449837,-500.0,0.00019315,3]
[351929467,1738847449846,-500.0,0.00019315,3]
[351929469,1738847449857,-300.0,0.00019315,3]
[351929471,1738847449867,-545.48,0.00019315,3]
[351929473,1738847449876,-621.04,0.00019315,3]
[351929475,1738847449886,-500.0,0.00019315,3]
[351929477,1738847449897,-500.0,0.00019315,3]
[351929479,1738847449911,-500.0,0.00019315,3]
[351929481,1738847449921,-1431.05,0.00019315,3]
[351929483,1738847449931,-500.0,0.00019315,3]
[351929485,1738847449941,-500.0,0.00019315,3]
[351929487,1738847449951,-500.0,0.00019315,2]
[351929489,1738847449961,-500.0,0.00019315,3]
[351929491,1738847449970,-500.0,0.00019315,3]
[351929493,1738847449983,-778.62,0.00019315,3]
[351929495,1738847449993,-505.56,0.00019315,3]
[351929497,1738847450002,-500.0,0.00019315,3]
[351929499,1738847450012,-900.16,0.00019315,3]
[351929501,1738847450023,-500.0,0.00019315,3]
[351929503,1738847450032,-500.0,0.00019315,3]
[351929505,1738847450042,-500.0,0.00019315,3]
[351929507,1738847450051,-500.0,0.00019315,3]
[351929509,1738847450060,-500.0,0.00019315,3]
[351929511,1738847450071,-500.0,0.00019315,3]
[351929513,1738847450081,-500.0,0.00019315,3]
[351929515,1738847450090,-500.0,0.00019315,3]
[351929517,1738847450100,-507.79,0.00019315,3]
[351929519,1738847450110,-500.0,0.00019315,3]
[351929521,1738847450119,-500.0,0.00019315,3]
[351929523,1738847450130,-628.06,0.00019315,3]
[351929525,1738847450140,-500.0,0.00019315,3]
[351929527,1738847450150,-514.00077247,0.00019315,3]
[351929529,1738847450161,-500.0,0.00019315,3]
[351929548,1738847450344,-500.0,0.00019315,3]
[351929550,1738847450353,-500.0,0.00019315,3]
[351929552,1738847450363,-719.38,0.00019315,3]
[351929554,1738847450372,-180.26852773,0.00019315,3]
[351929556,1738847450382,-500.0,0.00019315,3]
[351929558,1738847450392,-500.0,0.00019315,3]
[351929560,1738847450401,-500.0,0.00019315,3]
[351929562,1738847450411,-500.0,0.00019315,3]
[351929564,1738847450420,-500.0,0.00019315,3]
[351929566,1738847450429,-500.0,0.00019315,3]
[351929567,1738847450439,-500.0,0.00019315,3]
[351929569,1738847450449,-500.0,0.00019315,3]
[351929570,1738847450458,-500.0,0.00019315,3]
[351929571,1738847450467,-1146.61,0.00019315,3]
[351929572,1738847450478,-675.23,0.00019315,3]
[351929573,1738847450488,-500.0,0.00019315,3]
[351929574,1738847450497,-559.57,0.00019315,3]
[351929575,1738847450506,-500.0,0.00019315,3]
[351929576,1738847450515,-500.0,0.00019315,3]
[351929577,1738847450524,-500.0,0.00019315,3]
[351929578,1738847450533,-500.0,0.00019315,3]
[351929579,1738847450542,-500.0,0.00019315,3]
[351929580,1738847450550,-500.0,0.00019315,3]
[351929581,1738847450560,-500.0,0.00019315,3]
[351929582,1738847450569,-1274.31,0.00019315,3]
[351929583,1738847450578,-569.37,0.00019315,3]
[351929584,1738847450587,-500.0,0.00019315,3]
[351929585,1738847450596,-500.0,0.00019315,3]
[351929586,1738847450605,-500.0,0.00019315,3]
[351929588,1738847450614,-500.0,0.00019315,3]
[351929590,1738847450623,-500.0,0.00019315,3]
[351929592,1738847450633,-500.0,0.00019315,3]
[351929594,1738847450642,-500.0,0.00019315,3]
[351929596,1738847450651,-500.0,0.00019315,3]
[351929598,1738847450661,-500.0,0.00019315,3]
[351929600,1738847450671,-555.46,0.00019315,3]
[351929602,1738847450680,-502.72093974,0.00019315,3]
[351929604,1738847450689,-543.5,0.00019315,3]
[351929606,1738847450698,-173.36467085,0.00019315,3]
[351929608,1738847450707,-229.48210442,0.00019315,3]
[351929610,1738847450717,-609.82,0.00019315,3]
[351929612,1738847450727,-500.0,0.00019315,3]
[351929614,1738847450736,-641.97,0.00019315,3]
[351929616,1738847450746,-500.0,0.00019315,3]
[351929618,1738847450755,-500.0,0.00019315,3]
[351929620,1738847450764,-500.0,0.00019315,3]
[351929622,1738847450774,-500.0,0.00019315,3]
[351929624,1738847450783,-595.4,0.00019315,3]
[351929626,1738847450793,-500.0,0.00019315,3]
[351929628,1738847450802,-1122.73,0.00019315,3]
[351929630,1738847450811,-500.0,0.00019315,3]
[351929632,1738847450820,-500.0,0.00019315,3]
[351929634,1738847450829,-500.0,0.00019315,3]
[351929636,1738847450839,-500.0,0.00019315,3]
[351929638,1738847450848,-504.0029586,0.00019315,3]
[351929640,1738847450858,-500.0,0.00019315,3]
[351929642,1738847450867,-500.0,0.00019315,3]
[351929644,1738847450876,-543.88,0.00019315,3]
[351929646,1738847450886,-500.0,0.00019315,2]
[351929648,1738847450901,-500.0,0.00019315,3]
[351929650,1738847450910,-500.0,0.00019315,3]
[351929652,1738847450919,-500.0,0.00019315,3]
[351929654,1738847450929,-234.5353464,0.00019315,3]
[351929656,1738847450940,-500.0,0.00019315,3]
[351929658,1738847450950,-950.26,0.00019315,3]
[351929660,1738847450959,-500.0,0.00019315,3]
[351929662,1738847450969,-500.0,0.00019315,3]
[351929664,1738847450980,-673.94,0.00019315,3]
[351929666,1738847450990,-500.0,0.00019315,3]
[351929668,1738847451000,-519.10578552,0.00019315,3]
[351929670,1738847451009,-500.0,0.00019315,3]
[351929672,1738847451019,-712.06,0.00019315,3]
[351929674,1738847451028,-500.0,0.00019315,3]
[351929676,1738847451038,-500.0,0.00019315,3]
[351929678,1738847451047,-770.76,0.00019315,3]
[351929680,1738847451056,-500.0,0.00019315,3]
[351929682,1738847451066,-500.0,0.00019315,3]
[351929684,1738847451075,-500.0,0.00019315,3]
[351929686,1738847451084,-153.08618581,0.00019315,3]
[351929688,1738847451093,-500.0,0.00019315,3]
[351929690,1738847451103,-539.14,0.00019315,3]
[351929692,1738847451112,-500.0,0.00019315,3]
[351929694,1738847451122,-500.0,0.00019315,3]
[351929696,1738847451131,-500.0,0.00019315,3]
[351929698,1738847451140,-500.0,0.00019315,3]
[351929700,1738847451150,-500.0,0.00019315,3]
[351929702,1738847451159,-500.0,0.00019315,3]
[351929704,1738847451169,-500.0,0.00019315,3]
[351929705,1738847451179,-504.18252283,0.00019315,3]
[351929706,1738847451188,-500.0,0.00019315,3]
[351929707,1738847451198,-500.0,0.00019315,3]
[351929708,1738847451208,-1247.48,0.00019315,3]
[351929709,1738847451217,-504.93,0.00019315,3]
[351929710,1738847451229,-500.0,0.00019315,3]
[351929711,1738847451238,-500.0,0.00019315,3]
[351929712,1738847451247,-500.0,0.00019315,3]
[351929713,1738847451256,-500.0,0.00019315,3]
[351929714,1738847451266,-680.54,0.00019315,3]
[351929715,1738847451276,-500.0,0.00019315,3]
[351929716,1738847451286,-500.0,0.00019315,3]
[351929717,1738847451295,-500.0,0.00019315,3]
[351929718,1738847451305,-263.30621072,0.00019315,3]
[351929719,1738847451314,-894.05,0.00019315,3]
[351929720,1738847451323,-500.0,0.00019315,3]
[351929721,1738847451333,-500.0,0.00019315,3]
[351929722,1738847451343,-660.05,0.00019315,3]
[351929724,1738847451352,-500.0,0.00019315,3]
[351929726,1738847451361,-500.0,0.00019315,3]
[351929727,1738847451370,-528.52,0.00019315,3]
[351929729,1738847451379,-500.0,0.00019315,3]
[351929732,1738847451389,-500.0,0.00019315,3]
[351929733,1738847451398,-500.0,0.00019315,3]
[351929735,1738847451407,-518.00187235,0.00019315,3]
[351929737,1738847451417,-500.0,0.00019315,3]
[351929739,1738847451426,-753.03,0.00019315,3]
[351929742,1738847451435,-500.0,0.00019315,3]
[351929743,1738847451445,-503.57545854,0.00019315,3]
[351929745,1738847451454,-961.38,0.00019315,3]
[351929747,1738847451463,-500.0,0.00019315,3]
[351929749,1738847451472,-602.62,0.00019315,3]
[351929751,1738847451481,-670.29,0.00019315,3]
[351929753,1738847451490,-500.0,0.00019315,3]
[351929755,1738847451500,-500.0,0.00019315,3]
[351929757,1738847451509,-500.0,0.00019315,3]
[351929758,1738847451519,-500.0,0.00019315,3]
[351929760,1738847451529,-501.6,0.00019315,3]
[351929762,1738847451539,-786.18,0.00019315,3]
[351929764,1738847451548,-500.0,0.00019315,3]
[351929766,1738847451557,-500.0,0.00019315,3]
[351929768,1738847451567,-500.0,0.00019315,3]
[351929770,1738847451576,-500.0,0.00019315,3]
[351929772,1738847451585,-500.0,0.00019315,3]
[351929774,1738847451594,-586.05,0.00019315,3]
[351929776,1738847451603,-500.0,0.00019315,3]
[351929778,1738847451612,-598.18,0.00019315,3]
[351929780,1738847451621,-500.0,0.00019315,3]
[351929782,1738847451630,-500.0,0.00019315,3]
[351929784,1738847451639,-500.0,0.00019315,3]
[351929786,1738847451648,-500.0,0.00019315,3]
[351929788,1738847451657,-502.89453944,0.00019315,3]
[351929790,1738847451667,-500.0,0.00019315,3]
[351929792,1738847451676,-500.0,0.00019315,3]
[351929794,1738847451686,-500.0,0.00019315,3]
[351929796,1738847451695,-357.99010162,0.00019315,3]
[351929797,1738847451704,-500.0,0.00019315,3]
[351929799,1738847451713,-500.0,0.00019315,3]
[351929801,1738847451723,-716.21,0.00019315,3]
[351929803,1738847451733,-500.0,0.00019315,3]
[351929805,1738847451742,-500.0,0.00019315,3]
[351929807,1738847451751,-500.0,0.00019315,3]
[351929810,1738847451761,-500.0,0.00019315,3]
[351929812,1738847451770,-500.0,0.00019315,3]
[351929813,1738847451779,-500.0,0.00019315,3]
[351929815,1738847451789,-500.0,0.00019315,3]
[351929818,1738847451798,-500.0,0.00019315,3]
[351929820,1738847451808,-500.0,0.00019315,3]
[351929821,1738847451818,-825.75,0.00019315,3]
[351929823,1738847451827,-597.02,0.00019315,3]
[351929825,1738847451836,-911.33,0.00019315,3]
[351929827,1738847451845,-500.0,0.00019315,3]
[351929829,1738847451855,-500.0,0.00019315,3]
[351929831,1738847451864,-500.0,0.00019315,3]
[351929833,1738847451873,-500.0,0.00019315,3]
[351929835,1738847451882,-500.0,0.00019315,3]
[351929837,1738847451893,-500.0,0.00019315,3]
[351929839,1738847451904,-859.38,0.00019315,3]
[351929841,1738847451914,-500.0,0.00019315,3]
[351929843,1738847451924,-500.0,0.00019315,3]
[351929845,1738847451933,-500.0,0.00019315,3]
[351929847,1738847451942,-500.0,0.00019315,3]
[351929849,1738847451952,-500.0,0.00019315,3]
[351929851,1738847451963,-500.0,0.00019315,3]
[351929853,1738847451973,-500.0,0.00019315,3]
[351929855,1738847451985,-500.0,0.00019315,3]
[351929857,1738847451994,-500.0,0.00019315,3]
[351929859,1738847452003,-752.97,0.00019315,3]
[351929861,1738847452013,-500.0,0.00019315,3]
[351929863,1738847452023,-500.0,0.00019315,3]
[351929865,1738847452032,-286.66974938,0.00019315,3]
[351929867,1738847452042,-500.0,0.00019315,3]
[351929869,1738847452051,-500.0,0.00019315,3]
[351929871,1738847452061,-500.0,0.00019315,3]
[351929873,1738847452071,-500.0,0.00019315,3]
[351929875,1738847452080,-500.0,0.00019315,3]
[351929877,1738847452090,-500.0,0.00019315,3]
[351929879,1738847452099,-500.0,0.00019315,3]
[351929881,1738847452108,-817.51,0.00019315,3]
[351929883,1738847452118,-839.52,0.00019315,3]
[351929885,1738847452128,-500.0,0.00019315,3]
[351929887,1738847452137,-500.0,0.00019315,3]
[351929889,1738847452147,-505.00566725,0.00019315,3]
[351929891,1738847452156,-690.2,0.00019315,3]
[351929893,1738847452165,-500.0,0.00019315,3]
[351929895,1738847452174,-934.43,0.00019315,3]
[351929897,1738847452184,-549.60824675,0.00019315,3]
[351929899,1738847452193,-500.0,0.00019315,3]
[351929901,1738847452202,-500.0,0.00019315,3]
[351929903,1738847452212,-500.0,0.00019315,3]
[351929905,1738847452221,-500.0,0.00019315,3]
[351929907,1738847452231,-500.0,0.00019315,3]
[351929909,1738847452240,-500.0,0.00019315,3]
[351929911,1738847452248,-500.0,0.00019315,3]
[351929913,1738847452258,-500.0,0.00019315,3]
[351929915,1738847452267,-500.0,0.00019315,3]
[351929917,1738847452276,-534.59,0.00019315,3]
[351929919,1738847452285,-500.0,0.00019315,3]
[351929920,1738847452295,-893.08,0.00019315,3]
[351929922,1738847452304,-151.0,0.00019315,2]
[351929924,1738847452313,-151.0,0.00019315,2]
[351929926,1738847452322,-500.0,0.00019315,3]
[351929928,1738847452332,-867.69,0.00019315,3]
[351929930,1738847452341,-500.0,0.00019315,3]
[351929932,1738847452351,-501.9319765,0.00019315,3]
[351929934,1738847452360,-500.0,0.00019315,3]
[351929936,1738847452369,-500.0,0.00019315,3]
[351929939,1738847452379,-500.0,0.00019315,3]
[351929940,1738847452388,-500.0,0.00019315,3]
[351929942,1738847452398,-822.52,0.00019315,3]
[351929945,1738847452407,-500.0,0.00019315,3]
[351929946,1738847452417,-515.73,0.00019315,3]
[351929948,1738847452426,-500.0,0.00019315,3]
[351929951,1738847452435,-829.26,0.00019315,3]
[351929952,1738847452445,-500.0,0.00019315,3]
[351929954,1738847452454,-500.0,0.00019315,3]
[351929956,1738847452463,-500.0,0.00019315,3]
[351929958,1738847452473,-506.29,0.00019315,3]
[351929960,1738847452482,-500.0,0.00019315,3]
[351929962,1738847452491,-504.10851657,0.00019315,3]
[351929964,1738847452500,-500.0,0.00019315,3]
[351929966,1738847452510,-500.0,0.00019315,3]
[351929968,1738847452519,-500.0,0.00019315,3]
[351929970,1738847452528,-793.69,0.00019315,3]
[351929972,1738847452538,-678.61,0.00019315,3]
[351929974,1738847452547,-500.0,0.00019315,3]
[351929976,1738847452556,-502.11047019,0.00019315,3]
[351929978,1738847452565,-500.0,0.00019315,3]
[351929980,1738847452575,-525.8,0.00019315,3]
[351929982,1738847452584,-500.0,0.00019315,3]
[351929984,1738847452593,-500.0,0.00019315,3]
[351929986,1738847452602,-500.0,0.00019315,3]
[351929988,1738847452611,-500.0,0.00019315,3]
[351929990,1738847452620,-500.0,0.00019315,3]
[351929992,1738847452629,-614.19,0.00019315,3]
[351929994,1738847452639,-500.0,0.00019315,3]
[351929996,1738847452647,-500.0,0.00019315,3]
[351929998,1738847452656,-763.82,0.00019315,3]
[351930000,1738847452666,-500.0,0.00019315,3]
[351930002,1738847452675,-272.54798089,0.00019315,3]
[351930004,1738847452684,-500.0,0.00019315,3]
[351930006,1738847452693,-794.8,0.00019315,3]
[351930008,1738847452703,-500.0,0.00019315,3]
[351930010,1738847452712,-500.0,0.00019315,3]
[351930012,1738847452722,-500.0,0.00019315,3]
[351930014,1738847452732,-500.0,0.00019315,3]
[351930016,1738847452741,-500.0,0.00019315,3]
[351930018,1738847452751,-500.0,0.00019315,3]
[351930020,1738847452760,-503.63,0.00019315,3]
[351930022,1738847452769,-500.0,0.00019315,3]
[351930024,1738847452779,-640.3,0.00019315,3]
[351930026,1738847452788,-500.0,0.00019315,3]
[351930028,1738847452797,-500.0,0.00019315,3]
[351930030,1738847452806,-599.19821324,0.00019315,3]
[351930032,1738847452815,-500.0,0.00019315,3]
[351930034,1738847452824,-500.0,0.00019315,3]
[351930035,1738847452834,-500.0,0.00019315,3]
[351930037,1738847452843,-500.0,0.00019315,3]
[351930039,1738847452853,-500.0,0.00019315,3]
[351930041,1738847452862,-500.39521021,0.00019315,3]
[351930044,1738847452871,-500.0,0.00019315,3]
[351930045,1738847452880,-698.21,0.00019315,3]
[351930047,1738847452890,-515.92271529,0.00019315,3]
[351930049,1738847452903,-599.43649977,0.00019315,3]
[351930051,1738847452912,-508.66365507,0.00019315,3]
[351930053,1738847452921,-545.12,0.00019315,3]
[351930055,1738847452930,-1094.9,0.00019315,3]
[351930057,1738847452941,-500.0,0.00019315,3]
[351930059,1738847452950,-500.0,0.00019315,3]
[351930061,1738847452959,-500.0,0.00019315,3]
[351930063,1738847452968,-500.0,0.00019315,3]
[351930065,1738847452978,-500.0,0.00019315,3]
[351930067,1738847452988,-540.63988318,0.00019315,3]
[351930069,1738847452998,-963.48,0.00019315,3]
[351930071,1738847453007,-500.0,0.00019315,3]
[351930073,1738847453016,-634.23,0.00019315,3]
[351930075,1738847453025,-500.0,0.00019315,3]
[351930077,1738847453035,-500.0,0.00019315,3]
[351930079,1738847453044,-500.0,0.00019315,3]
[351930081,1738847453053,-500.0,0.00019315,3]
[351930082,1738847453063,-502.98683761,0.00019315,3]
[351930083,1738847453074,-500.0,0.00019315,3]
[351930084,1738847453082,-500.0,0.00019315,3]
[351930085,1738847453091,-500.0,0.00019315,3]
[351930086,1738847453101,-507.8784329,0.00019315,3]
[351930087,1738847453111,-500.0,0.00019315,3]
[351930088,1738847453120,-638.85,0.00019315,3]
[351930089,1738847453129,-1207.59,0.00019315,3]
[351930090,1738847453138,-894.07,0.00019315,3]
[351930091,1738847453147,-502.7496681,0.00019315,3]
[351930093,1738847453156,-500.0,0.00019315,3]
[351930094,1738847453165,-500.0,0.00019315,3]
[351930095,1738847453174,-500.0,0.00019315,3]
[351930096,1738847453183,-1081.55,0.00019315,3]
[351930097,1738847453192,-500.0,0.00019315,3]
[351930098,1738847453202,-500.0,0.00019315,3]
[351930099,1738847453211,-591.92,0.00019315,3]
[351930100,1738847453220,-500.0,0.00019315,3]
[351930101,1738847453230,-500.0,0.00019315,3]
[351930102,1738847453239,-500.0,0.00019315,3]
[351930103,1738847453249,-949.11,0.00019315,3]
[351930104,1738847453258,-499.90062256,0.00019315,3]
[351930105,1738847453267,-1268.08,0.00019315,3]
[351930106,1738847453276,-344.52267532,0.00019315,3]
[351930107,1738847453286,-1200.0,0.00019315,5]
[351930108,1738847453295,-592.99729503,0.00019315,3]
[351930109,1738847453304,-1133.16,0.00019315,3]
[351930110,1738847453313,-325.23685188,0.00019315,3]
[351930111,1738847453323,-500.0,0.00019315,3]
[351930112,1738847453332,-500.0,0.00019315,3]
[351930113,1738847453342,-794.94,0.00019315,3]
[351930114,1738847453351,-374.87923395,0.00019315,3]
[351930115,1738847453360,-500.0,0.00019315,3]
[351930116,1738847453370,-500.0,0.00019315,3]
[351930117,1738847453379,-500.0,0.00019315,3]
[351930118,1738847453389,-503.99618225,0.00019315,3]
[351930119,1738847453399,-500.0,0.00019315,3]
[351930120,1738847453408,-988.67,0.00019315,3]
[351930121,1738847453418,-500.0,0.00019315,3]
[351930122,1738847453429,-1055.95,0.00019315,3]
[351930123,1738847453439,-563.69,0.00019315,3]
[351930124,1738847453448,-500.0,0.00019315,3]
[351930126,1738847453457,-778.72,0.00019315,3]
[351930128,1738847453467,-250.0,0.00019315,3]
[351930130,1738847453478,-500.0,0.00019315,3]
[351930138,1738847453651,-1254.94,0.00019315,3]
[351930139,1738847453661,-500.0,0.00019315,3]
[351930141,1738847453671,-500.0,0.00019315,3]
[351930143,1738847453680,-650.01,0.00019315,3]
[351930144,1738847453690,-1063.42,0.00019315,3]
[351930145,1738847453700,-500.0,0.00019315,3]
[351930146,1738847453709,-500.0,0.00019315,3]
[351930147,1738847453719,-500.0,0.00019315,3]
[351930148,1738847453728,-500.0,0.00019315,3]
[351930149,1738847453738,-500.0,0.00019315,3]
[351930150,1738847453747,-500.0,0.00019315,3]
[351930151,1738847453757,-500.0,0.00019315,3]
[351930152,1738847453767,-500.0,0.00019315,3]
[351930153,1738847453777,-554.32,0.00019315,3]
[351930154,1738847453786,-500.0,0.00019315,3]
[351930155,1738847453797,-500.0,0.00019315,3]
[351930156,1738847453807,-500.0,0.00019315,3]
[351930157,1738847453817,-500.0,0.00019315,3]
[351930158,1738847453826,-505.7,0.00019315,3]
[351930159,1738847453835,-581.89,0.00019315,3]
[351930160,1738847453844,-500.0,0.00019315,3]
[351930161,1738847453854,-500.0,0.00019315,3]
[351930162,1738847453863,-500.0,0.00019315,3]
[351930163,1738847453874,-1073.98,0.00019315,3]
[351930164,1738847453883,-500.0,0.00019315,3]
[351930165,1738847453893,-555.99,0.00019315,3]
[351930166,1738847453905,-775.66,0.00019315,3]
[351930167,1738847453915,-300.65222773,0.00019315,3]
[351930168,1738847453925,-500.0,0.00019315,3]
[351930169,1738847453935,-721.6,0.00019315,3]
[351930170,1738847453946,-662.77,0.00019315,3]
[351930171,1738847453956,-1336.44,0.00019315,3]
[351930172,1738847453966,-500.0,0.00019315,3]
[351930173,1738847453976,-708.76,0.00019315,3]
[351930174,1738847453986,-926.5,0.00019315,3]
[351930176,1738847453996,-995.9,0.00019315,3]
[351930177,1738847454006,-500.0,0.00019315,3]
[351930178,1738847454015,-500.0,0.00019315,3]
[351930179,1738847454025,-913.96,0.00019315,3]
[351930180,1738847454034,-1783.16,0.00019315,3]
[351930181,1738847454044,-500.0,0.00019315,3]
[351930182,1738847454053,-1191.81,0.00019315,3]
[351930183,1738847454062,-500.0,0.00019315,3]
[351930184,1738847454072,-1368.98,0.00019315,3]
[351930185,1738847454082,-903.51,0.00019315,3]
[351930188,1738847454092,-502.27247511,0.00019315,3]
[351930190,1738847454101,-504.85962021,0.00019315,3]
[351930191,1738847454111,-500.0,0.00019315,3]
[351930193,1738847454120,-500.0,0.00019315,3]
[351930195,1738847454130,-500.0,0.00019315,3]
[351930197,1738847454139,-1131.74,0.00019315,3]
[351930199,1738847454148,-1207.28,0.00019315,3]
[351930201,1738847454157,-500.0,0.00019315,3]
[351930203,1738847454167,-500.0,0.00019315,3]
[351930205,1738847454176,-796.41,0.00019315,3]
[351930207,1738847454185,-800.45,0.00019315,3]
[351930209,1738847454195,-500.0,0.00019315,3]
[351930211,1738847454204,-638.04,0.00019315,3]
[351930213,1738847454214,-500.0,0.00019315,3]
[351930215,1738847454223,-500.0,0.00019315,3]
[351930217,1738847454232,-982.6,0.00019315,3]
[351930218,1738847454242,-500.0,0.00019315,3]
[351930219,1738847454251,-1249.07,0.00019315,3]
[351930220,1738847454261,-1087.45,0.00019315,3]
[351930221,1738847454271,-860.58,0.00019315,3]
[351930222,1738847454281,-629.6,0.00019315,3]
[351930223,1738847454291,-500.0,0.00019315,3]
[351930224,1738847454301,-1172.17,0.00019315,3]
[351930225,1738847454312,-1026.89,0.00019315,3]
[351930226,1738847454322,-902.45,0.00019315,3]
[351930227,1738847454331,-506.27,0.00019315,3]
[351930228,1738847454341,-500.0,0.00019315,3]
[351930229,1738847454351,-1915.12,0.00019315,3]
[351930230,1738847454360,-710.67,0.00019315,3]
[351930231,1738847454370,-518.69948886,0.00019315,3]
[351930232,1738847454380,-1215.01,0.00019315,3]
[351930233,1738847454389,-902.17,0.00019315,3]
[351930234,1738847454399,-461.00419305,0.00019315,3]
[351930235,1738847454408,-500.0,0.00019315,3]
[351930236,1738847454417,-494.17237883,0.00019315,3]
[351930237,1738847454427,-500.0,0.00019315,3]
[351930238,1738847454437,-530.8,0.00019315,3]
[351930239,1738847454446,-1160.09,0.00019315,3]
[351930240,1738847454456,-549.95583035,0.00019315,3]
[351930241,1738847454466,-2281.51,0.00019315,3]
[351930242,1738847454479,-629.19,0.00019315,3]
[351930243,1738847454490,-619.32,0.00019315,3]
[351930244,1738847454501,-1488.56,0.00019315,3]
[351930245,1738847454512,-500.0,0.00019315,3]
[351930246,1738847454523,-500.0,0.00019315,3]
[351930247,1738847454541,-1809.02,0.00019315,3]
[351930248,1738847454561,-500.0,0.00019315,3]
[351930249,1738847454582,-500.0,0.00019315,3]
[351930250,1738847454601,-876.65,0.00019315,3]
[351930251,1738847454611,-1535.74,0.00019315,3]
[351930252,1738847454621,-500.0,0.00019315,3]
[351930253,1738847454633,-500.0,0.00019315,3]
[351930254,1738847454644,-1334.99,0.00019315,3]
[351930256,1738847454654,-500.0,0.00019315,3]
[351930257,1738847454664,-609.74,0.00019315,3]
[351930258,1738847454674,-678.12,0.00019315,3]
[351930259,1738847454683,-1547.66,0.00019315,3]
[351930260,1738847454693,-500.0,0.00019315,3]
[351930261,1738847454703,-579.07,0.00019315,3]
[351930263,1738847454712,-500.0,0.00019315,3]
[351930265,1738847454722,-3636.45,0.00019315,3]
[351930267,1738847454732,-684.11,0.00019315,3]
[351930269,1738847454742,-500.0,0.00019315,3]
[351930271,1738847454751,-862.86,0.00019315,3]
[351930273,1738847454762,-1245.57,0.00019315,3]
[351930274,1738847454771,-1605.58,0.00019315,3]
[351930275,1738847454782,-500.0,0.00019315,3]
[351930276,1738847454791,-500.0,0.00019315,3]
[351930277,1738847454801,-804.82,0.00019315,3]
[351930278,1738847454811,-500.0,0.00019315,3]
[351930279,1738847454820,-502.77863545,0.00019315,3]
[351930280,1738847454830,-500.0,0.00019315,3]
[351930281,1738847454840,-2492.49,0.00019315,3]
[351930282,1738847454850,-500.0,0.00019315,3]
[351930283,1738847454860,-500.0,0.00019315,3]
[351930284,1738847454869,-1404.78,0.00019315,3]
[351930285,1738847454879,-500.0,0.00019315,3]
[351930286,1738847454889,-151.0,0.00019315,2]
[351930287,1738847454911,-151.0,0.00019315,2]
[351930288,1738847454926,-1021.69,0.00019315,3]
[351930289,1738847454935,-728.92,0.00019315,3]
[351930290,1738847454944,-500.0,0.00019315,3]
[351930291,1738847454954,-500.0,0.00019315,3]
[351930292,1738847454964,-500.0,0.00019315,3]
[351930293,1738847454973,-402.92788431,0.00019315,3]
[351930294,1738847454983,-1127.04,0.00019315,3]